Cogmind - Beta 11 @@@ ROGUE MODE // 2022.03.29 @ 10:28:00 Player: AbsoluteZero Result: Self-destructed Performance ------------- Evolutions (9) 4500 Regions Visited (24) 4800 Robots Destroyed (181) 905 Value Destroyed (7583) 7583 Prototype IDs (38) 760 Alien Tech Used (1) 200 Bonus (3652) 3652 TOTAL SCORE: 22400 Bonus ------- High Alert Combat Kills 840 Follower Combat Kills 242 Entered DSFs 1000 Met Data Miner 300 Met Warlord at Base 500 MAIN.C Attacked Warlord 500 Warlord Defense Kill 584 Friendly Fire -314 Cogmind --------- Core Integrity 1287/1600 Matter 49/300 Energy 0/100 System Corruption 1% Temperature Cool (0) Movement Hovering (146) Ox2 Location -1/Command Parts ------- > --- POWER (2) -------- (None) > --- PROPULSION (9) --- Improved Gyrokinetic Inverter Improved Gyrokinetic Inverter Improved Gyrokinetic Inverter Improved Gyrokinetic Inverter Antigrav Array Antigrav Array Combat Linear Gravjet > --- UTILITY (11) ----- Advanced Heat Sink Advanced Heat Sink Large Storage Unit Advanced Visual Processing Unit Experimental Targeting Computer Advanced Target Analyzer Precision Matter Filter Advanced Transmission Jammer Advanced Phase Shifter Improved Cloaking Device > --- WEAPON (3) ------- Heavy Linear Accelerator Point Singularity Launcher > --- INVENTORY (15) --- Light Antimatter Reactor Improved Gyrokinetic Inverter Antigrav Array Improved Core Shielding Advanced Shield Generator Improved Force Field Enhanced Quantum Rifle Enhanced Nova Cannon Hypervelocity Railgun Hypervelocity Railgun Enhanced Gauss Cannon Linear Accelerator Linear Accelerator RU-N14's Throwing Claymores v3 (8) Peak State ------------ > --- POWER ------------ Vortex Chain Reactor > --- PROPULSION ------- Improved Gyrokinetic Inverter Improved Gyrokinetic Inverter Improved Gyrokinetic Inverter Improved Gyrokinetic Inverter Antigrav Array Antigrav Array Combat Linear Gravjet > --- UTILITY ---------- Advanced Cryofiber Web Advanced Heat Sink Advanced Heat Sink Large Storage Unit Advanced Visual Processing Unit Experimental Targeting Computer Advanced Target Analyzer Precision Matter Filter Advanced Transmission Jammer Advanced Phase Shifter Experimental Focal Shield > --- WEAPON ----------- Hypervelocity Railgun Hypervelocity Railgun Linear Accelerator > --- INVENTORY -------- Light Antimatter Reactor Improved Gyrokinetic Inverter Antigrav Array Improved Core Shielding Advanced Shield Generator Improved Force Field Enhanced Quantum Rifle Enhanced Nova Cannon Hypervelocity Railgun Hypervelocity Railgun Enhanced Gauss Cannon Linear Accelerator RU-N14's Throwing Claymores v3 [Rating: 189] Favorites ----------- Power Micro Nuclear Core Engine Light Ion Engine Power Core Micro Nuclear Core Reactor Vortex Chain Reactor Propulsion Gravmag Array Treads Armored Treads Leg Aluminum Leg Wheel Armored Wheel Hover Unit Gravmag Array Utility Large Storage Unit Device Advanced Heat Sink Storage Large Storage Unit Processor Improved Targeting Computer Hackware Advanced Hacking Suite Protection Improved Medium Armor Plating Weapon Improved Assault Rifle Energy Gun Heavy EM Pulse Gun Energy Cannon Cooled Particle Cannon Ballistic Gun Improved Assault Rifle Ballistic Cannon Mass Driver Launcher Precision Rocket Launcher Special Weapon RU-N14's Throwing Claymores v3 Slashing Weapon Power Sword Build | -11 -10 -10 -9 -9 -8 -7 -7 -6 -6 -6 -6 -5 -5 -5 -5 -5 -4 -4 -3 -3 -2 -2 -1 -1 ------- Run | Scr Mat Min Mat Sto Mat Fac DSF Fac Low Low Dat Pro Fac Upp Upp War Pro Fac Res DSF Res Qua Acc Com Slots Evolved 18 | . . . 2 . 2 2 . 2 . . . . 2 . . . . 2 2 . 2 . 2 . Power 1 | . . . . . . . . 1 . . . . . . . . . . . . . . . . Propulsion 7 | . . . 1 . 1 2 . . . . . . . . . . . 2 . . . . 1 . Utility 9 | . . . 1 . 1 . . 1 . . . . 2 . . . . . 2 . 1 . 1 . Weapon 1 | . . . . . . . . . . . . . . . . . . . . . 1 . . . Parts Attached 223 | 6 6 . 23 11 26 2 11 5 5 1 . 1 18 4 7 11 8 23 1 14 12 3 17 8 Power 12 | 1 . . 3 1 2 . 1 1 . . . . . . . . . 3 . . . . . . Engine 6 | 1 . . 2 1 2 . . . . . . . . . . . . . . . . . . . Core 4 | . . . 1 . . . 1 1 . . . . . . . . . 1 . . . . . . Reactor 2 | . . . . . . . . . . . . . . . . . . 2 . . . . . . Propulsion 47 | 2 4 . 2 . 3 2 4 . . . . . 2 2 4 1 . 9 . 10 . . 2 . Treads 3 | . . . . . 1 1 1 . . . . . . . . . . . . . . . . . Leg 2 | 2 . . . . . . . . . . . . . . . . . . . . . . . . Wheel 9 | . 4 . 2 . 2 1 . . . . . . . . . . . . . . . . . . Hover 33 | . . . . . . . 3 . . . . . 2 2 4 1 . 9 . 10 . . 2 . Flight . | . . . . . . . . . . . . . . . . . . . . . . . . . Utility 76 | 1 1 . 5 1 6 . 4 1 . 1 . . 7 . . 5 4 8 1 3 8 1 14 5 Device 49 | . 1 . 1 . 3 . . . . 1 . . 7 . . 4 1 4 1 2 8 1 11 4 Storage 5 | 1 . . 2 . . . 2 . . . . . . . . . . . . . . . . . Processor 5 | . . . 1 . . . . . . . . . . . . 1 . . . . . . 3 . Hackware 2 | . . . . . . . . . . . . . . . . . . 2 . . . . . . Protection 15 | . . . 1 1 3 . 2 1 . . . . . . . . 3 2 . 1 . . . 1 Artifact . | . . . . . . . . . . . . . . . . . . . . . . . . . Weapon 88 | 2 1 . 13 9 15 . 2 3 5 . . 1 9 2 3 5 4 3 . 1 4 2 1 3 Energy Gun 33 | 1 1 . 5 4 9 . . 2 2 . . . . . 1 3 2 1 . . 1 1 . . Energy Cannon 14 | . . . 4 4 . . . . . . . . 4 . . . . . . . 1 1 . . Ballistic Gun 12 | 1 . . 1 . 3 . 1 . 1 . . . 1 . . . . 1 . . 2 . . 1 Ballistic Cannon 6 | . . . . . . . . . . . . . 1 1 1 . . 1 . . . . 1 1 Launcher 14 | . . . 3 1 3 . 1 1 2 . . . 1 . 1 . . . . . . . . 1 Special Weapon 7 | . . . . . . . . . . . . 1 1 . . 2 2 . . 1 . . . . Impact Weapon . | . . . . . . . . . . . . . . . . . . . . . . . . . Slashing Weapon 2 | . . . . . . . . . . . . . 1 1 . . . . . . . . . . Piercing Weapon . | . . . . . . . . . . . . . . . . . . . . . . . . . Special Melee Weapon . | . . . . . . . . . . . . . . . . . . . . . . . . . Unidentified Prototypes 18 | . . . 2 2 1 . . 1 . . . 1 1 . . 5 . 1 . . 1 1 1 1 Parts Lost 48 | . . . 5 . 11 . 2 . 1 . . . 5 4 6 . . 1 . 5 . . 3 5 Power 4 | . . . 2 . 1 . . . . . . . . . . . . . . . . . . 1 Propulsion 13 | . . . 1 . 2 . 2 . . . . . . 2 3 . . . . 3 . . . . Utility 18 | . . . . . 4 . . . 1 . . . 4 2 1 . . . . 1 . . 3 2 Weapon 13 | . . . 2 . 4 . . . . . . . 1 . 2 . . 1 . 1 . . . 2 Highest Loss Streak 6 | . . . 1 . 3 . 1 . 1 . . . 2 4 6 . . 1 . 4 . . 2 3 To Critical Strikes 1 | . . . . . . . . . . . . . 1 . . . . . . . . . . . Average Slot Usage (%) 82 | . 86 100 98 100 98 92 87 80 73 75 80 74 67 68 54 58 81 83 90 78 86 85 86 81 Engine 3 | . 14 14 10 3 8 7 4 . . . . . . . . . . . . . . . . . Core 5 | . . . . 7 . . 2 13 13 13 13 13 11 11 11 11 11 1 . . . . . . Wheel 10 | . 17 28 32 33 29 30 16 . . . . . . . . . . . . . . . . . Hover 15 | . . . . . . . 7 20 20 20 20 20 20 21 17 20 23 35 38 31 26 26 28 28 Device 12 | . 1 14 9 . 8 7 7 6 6 8 13 13 13 17 7 8 22 15 14 11 25 29 23 24 Storage 7 | . 14 14 11 11 9 7 7 6 6 6 6 6 5 5 5 5 5 5 4 4 4 4 4 4 Processor 5 | . . . 9 11 9 7 7 6 6 6 6 6 . . . 2 5 5 4 4 4 4 12 12 Protection 3 | . . . 1 11 8 7 7 13 6 6 6 6 3 . . . 1 4 4 1 4 4 2 . Energy Gun 5 | . 14 14 10 20 10 . . . 5 6 6 1 . . . 5 3 5 4 2 . 3 . . Energy Cannon 1 | . . . 6 . . . . . . . . . 3 . . . . . . . 3 . . . Ballistic Gun 5 | . 14 14 4 . 7 15 15 12 6 6 6 1 . 5 3 . . . . . 8 8 8 4 Ballistic Cannon 1 | . . . . . . . . . . . . . 3 2 5 . . 1 4 4 . . 3 4 Naked Turns . | . . . . . . . . . . . . . . . . . . . . . . . . . Heaviest Build 109 | 12 14 14 56 61 67 58 62 54 52 49 49 49 68 58 57 55 61 87 90 90 107 100 109 107 Greatest Support 117 | 20 24 24 36 36 46 44 60 60 60 60 60 60 60 60 61 64 64 93 93 100 100 100 117 117 Greatest Overweight (x) 2 | 1 . . 1 1 1 1 2 . . . . . 1 . . . . 1 . 1 1 . . . Average Overweight (x) . | . . . . 1 1 1 . . . . . . . . . . . . . . . . . . Largest Inventory Capacity 20 | 8 8 8 20 20 20 20 20 15 15 15 15 15 15 15 15 15 15 15 15 15 15 15 15 15 Average Capacity 15 | 7 8 8 19 20 20 20 18 15 15 15 15 15 15 15 15 15 15 15 15 15 15 15 15 15 Most Carried 20 | 3 8 8 16 20 19 18 20 15 15 15 15 15 15 13 12 15 15 15 10 14 15 15 15 15 Average Carried 13 | 2 6 8 12 17 15 17 16 13 14 15 15 14 14 11 10 11 14 13 10 10 14 15 14 13 Final Capacity 20 | 8 8 8 20 20 20 20 15 15 15 15 15 15 15 15 15 15 15 15 15 15 15 15 15 15 Final Carried 20 | 3 8 8 15 20 18 16 12 14 15 15 15 15 13 10 9 14 14 11 10 13 15 15 14 15 Class Distribution -------------------- 83% | Mutant Dominant Class ---------------- Mutant | -10/Materials Mutant | -10/Mines Mutant | -9/Materials Mutant | -9/Storage Mutant | -8/Materials Mutant | -7/Factory Mutant | -7/DSF Mutant | -6/Factory Mutant | -6/Lower Caves Mutant | -6/Lower Caves Mutant | -6/Data Miner Mutant | -5/Proximity Caves Mutant | -5/Factory Mutant | -5/Upper Caves Mutant | -5/Upper Caves Mutant | -5/Warlord Mutant | -4/Proximity Caves Mutant | -4/Factory Mutant | -3/Research Hacker-Mutant | -3/DSF Tank | -2/Research Mutant | -2/Quarantine Scavenger-Scout | -1/Access Scavenger-Mutant | -1/Command Resources | -11 -10 -10 -9 -9 -8 -7 -7 -6 -6 -6 -6 -5 -5 -5 -5 -5 -4 -4 -3 -3 -2 -2 -1 -1 ----------- Run | Scr Mat Min Mat Sto Mat Fac DSF Fac Low Low Dat Pro Fac Upp Upp War Pro Fac Res DSF Res Qua Acc Com Matter Collected 4279 | 260 40 53 341 110 436 . 243 95 58 15 . 100 601 147 171 208 30 241 . 170 344 . 518 98 Remotely 618 | . . . . . . . . . . . . . 495 123 . . . . . . . . . . Salvage Created 7591 | . 40 21 1202 252 1072 . 262 191 282 . . . 643 . 85 141 297 632 . 438 204 . 1731 98 Parts 336 | . 4 1 75 12 49 . 15 9 9 . . . 36 . 3 5 7 18 . 18 6 . 66 3 Haulers Intercepted 10 | . . . 3 2 2 . . . . . . . . . . . 1 . . . 1 . 1 . Recyclers Shooed 5 | . . 2 . . . . . . . . . . 1 . . . . . . . . . 2 . Parts Field Recycled . | . . . . . . . . . . . . . . . . . . . . . . . . . Retrieved Matter . | . . . . . . . . . . . . . . . . . . . . . . . . . Parts Self-Destructed 50 | . . . . . . . . . 3 . . 5 . 5 1 30 6 . . . . . . . Prevented 13 | . . . . . . . . . . . . 1 . . . 12 . . . . . . . . Kills | -11 -10 -10 -9 -9 -8 -7 -7 -6 -6 -6 -6 -5 -5 -5 -5 -5 -4 -4 -3 -3 -2 -2 -1 -1 ------- Run | Scr Mat Min Mat Sto Mat Fac DSF Fac Low Low Dat Pro Fac Upp Upp War Pro Fac Res DSF Res Qua Acc Com Combat Hostiles Destroyed 150 | . 1 . 29 3 24 . 4 6 6 . . . 15 . 5 9 11 11 . 8 1 . 16 1 Guns 56 | . 1 . 9 3 12 . 4 3 1 . . . 1 . . . . 6 . 1 1 . 13 1 Cannons 26 | . . . 5 . . . . . . . . . 8 . 1 2 2 2 . 3 . . 3 . AOE 62 | . . . 14 . 8 . . 3 5 . . . 5 . 4 7 9 3 . 4 . . . . Classes Destroyed 19 | . 1 1 8 . 1 . 2 . 2 . . . 1 . . 1 . . . 2 . . . . Worker 6 | . . . 2 . . . . . . . . . 3 . . . . . . . . . . 1 Builder 3 | . . 1 . . 1 . . . . . . . 1 . . . . . . . . . . . Tunneler 2 | . . . 1 . . . . . . . . . . . . . . . . . . . 1 . Hauler 10 | . . . 3 2 2 . . . . . . . . . . . 1 . . . 1 . 1 . Recycler 5 | . . . 1 . . . . . . . . . 1 . . . . 2 . . . . 1 . Watcher 3 | . . . . . . . . . . . . . 1 . . . . . . . . . 2 . Swarmer 35 | . . . 12 . 3 . . 4 . . . . 5 . 4 3 4 . . . . . . . Cutter 2 | . . . . . . . . . . . . . . . . . . . . 2 . . . . Saboteur 3 | . . . . . . . . . . . . . . . . 3 . . . . . . . . Grunt 61 | . 1 . 8 2 14 . 2 1 3 . . . 6 . . 3 6 . . 4 1 . 10 . Brawler 1 | . . . 1 . . . . . . . . . . . . . . . . . . . . . Duelist 4 | . . . 1 . 2 . . . 1 . . . . . . . . . . . . . . . Protector 2 | . . . . . 1 . . . . . . . . . . . . 1 . . . . . . Sentry 18 | . . . 7 1 4 . . 1 . . . . . . . . . 5 . . . . . . Specialist 1 | . . . . . . . . . . . . . . . . . . . . 1 . . . . Hunter 12 | . . . . . . . . . 2 . . . 2 . 1 . . 2 . . . . 4 1 Programmer 9 | . . . . . . . 1 . . . . . 2 . . . 1 3 . . . . 2 . Heavy 2 | . . . . . . . 1 . . . . . . . . . . . . 1 . . . . Thug 1 | . . . . . . . . . 1 . . . . . . . . . . . . . . . Mutant 1 | . . . . . . . . . 1 . . . . . . . . . . . . . . . Best Kill Streak 9 | . 1 1 7 3 4 . 3 3 4 . . . 7 . 5 6 7 9 . 4 2 . 5 1 Combat Bots Only 7 | . 1 . 5 2 4 . 3 3 4 . . . 5 . 5 6 7 6 . 4 1 . 4 1 Max Kills in Single Turn 5 | . 1 1 5 1 2 . 1 2 3 . . . 5 . 4 3 3 2 . 3 1 . 2 1 Gunslinging . | . . . . . . . . . . . . . . . . . . . . . . . . . Exploded 5 | . . . 4 . 2 . . 2 1 . . . 5 . 4 3 3 2 . 3 . . . . Melee . | . . . . . . . . . . . . . . . . . . . . . . . . . Uniques/NPCs Destroyed . | . . . . . . . . . . . . . . . . . . . . . . . . . Combat | -11 -10 -10 -9 -9 -8 -7 -7 -6 -6 -6 -6 -5 -5 -5 -5 -5 -4 -4 -3 -3 -2 -2 -1 -1 -------- Run | Scr Mat Min Mat Sto Mat Fac DSF Fac Low Low Dat Pro Fac Upp Upp War Pro Fac Res DSF Res Qua Acc Com Damage Taken 9091 | . 21 22 628 63 1082 . 626 276 512 . . . 989 427 796 16 57 671 . 665 209 120 1251 660 Core 1189 | . 10 . 90 . 87 . 167 . 77 . . . 128 25 69 . 21 121 . 24 43 14 159 154 Absorbed by Shields 349 | . . . . . . . . . . . . . . . . . 13 . . . . 43 293 . Core Remaining (%) 88 | 100 . 96 . 77 84 . 76 . . . . 90 . . . . 75 89 . 98 . 96 . . Volleys Fired 439 | . 6 5 56 14 70 . 23 12 13 . . 2 51 7 16 3 8 45 . 21 6 6 68 7 Largest 3 | . 2 2 2 2 2 . 2 2 2 . . 1 2 2 2 1 1 2 . 2 3 1 3 3 Hottest 200 | . 76 76 101 90 90 . 46 46 108 . . 85 90 90 138 . . 102 . 102 200 120 146 146 Shots Fired 794 | . 12 10 97 24 135 . 46 22 15 . . 2 88 14 22 3 8 47 . 40 19 6 171 13 Gun 522 | . 12 10 52 20 129 . 46 20 6 . . 1 3 7 8 . . 40 . 19 13 5 126 5 Cannon 219 | . . . 40 4 . . . . . . . . 74 7 13 . . 3 . 19 6 1 45 7 Launcher 25 | . . . 5 . 6 . . 2 9 . . . 1 . 1 . . . . . . . . 1 Special 28 | . . . . . . . . . . . . 1 10 . . 3 8 4 . 2 . . . . Kinetic 418 | . 6 5 22 . 47 . 46 20 2 . . . 38 14 15 . . 3 . 19 13 . 156 12 Thermal 114 | . 6 5 . 4 22 . . . 4 . . 1 39 . 6 . . . . . 6 6 15 . Explosive 42 | . . . 5 . 6 . . 2 9 . . . 1 . 1 3 8 4 . 2 . . . 1 Electromagnetic 150 | . . . 70 20 60 . . . . . . . . . . . . . . . . . . . Entropic 59 | . . . . . . . . . . . . . . . . . . 40 . 19 . . . . Robot Hit Streak 23 | . 3 5 14 9 11 . 13 23 16 . . . 6 8 4 5 9 15 . 13 8 . 16 3 Robot Miss Streak 6 | . 2 1 2 2 3 . 2 1 1 . . . 3 1 3 . . 1 . 5 2 . 6 2 Penetration Max 2 | . . . . . . . . . . . . . 1 . . . . 2 . . . . 1 . Secondary Targets 7 | . . . . . 4 . . 1 . . . . . . . . . . . . . . 2 . Max Gunslinging Chain 1 | . . . . . 1 . . 1 . . . . . . . . . . . . . . 1 . Capacitor 37 | . . . . . . . . . . . . . . . . . . 37 . . . . . . Shots Hit Robots 532 | . 5 7 69 14 105 . 34 20 14 . . . 54 8 8 1 4 40 . 31 12 . 104 2 Core Hits 292 | . 2 3 47 6 48 . 11 12 16 . . . 27 . 6 9 14 20 . 15 5 . 47 4 Critical Kills 20 | . . . . . . . . . . . . . . . . . . . . . 2 . 17 1 Critical Parts Destroyed 31 | . . . . . . . . 1 . . . . . . . . . 5 . 1 4 . 20 . Critical Strikes 65 | . . . 1 . 1 . . 1 . . . . 1 1 . . 1 8 . 2 6 . 42 1 Destroy 45 | . . . . . . . . 1 . . . . . . . . . . . . 6 . 37 1 Blast 9 | . . . . . . . . . . . . . 1 1 . . . 2 . . . . 5 . Corrupt 2 | . . . 1 . 1 . . . . . . . . . . . . . . . . . . . Sever 3 | . . . . . . . . . . . . . . . . . 1 1 . 1 . . . . Detonate 6 | . . . . . . . . . . . . . . . . . . 5 . 1 . . . . Melee Attacks 9 | . . . . . . . . . . . . . 2 7 . . . . . . . . . . Impact . | . . . . . . . . . . . . . . . . . . . . . . . . . Slashing 9 | . . . . . . . . . . . . . 2 7 . . . . . . . . . . Piercing . | . . . . . . . . . . . . . . . . . . . . . . . . . Sneak Attacks . | . . . . . . . . . . . . . . . . . . . . . . . . . Combat Hostiles . | . . . . . . . . . . . . . . . . . . . . . . . . . Follow-up Attacks . | . . . . . . . . . . . . . . . . . . . . . . . . . Damage Inflicted 20527 | . 68 92 2167 225 2670 . 569 521 1269 . . . 2194 243 455 1228 2226 2494 . 1824 232 . 1890 160 Guns 6907 | . 68 92 565 202 1643 . 569 272 85 . . . 76 97 67 . . 1463 . 556 94 . 1046 12 Cannons 4167 | . . . 643 . . . . . . . . . 1690 146 92 . . 73 . 541 138 . 844 . Explosions 8623 | . . . 959 23 1026 . . 249 1184 . . . 405 . 296 1071 1913 755 . 635 . . . 107 Melee . | . . . . . . . . . . . . . . . . . . . . . . . . . Ramming 65 | . . . . . 1 . . . . . . . 23 . . . . . . . . . . 41 Kinetic 5415 | . 26 64 226 . 614 . 569 272 31 . . . 1065 243 92 . . 73 . 541 94 . 1493 12 Thermal 2184 | . 42 28 211 23 305 . . . 54 . . . 701 . 67 . . 218 . . 138 . 397 . Explosive 8073 | . . . 748 . 1026 . . 249 1184 . . . 405 . 296 1071 1913 439 . 635 . . . 107 Electromagnetic 2006 | . . . 982 202 724 . . . . . . . . . . . . 98 . . . . . . Impact . | . . . . . . . . . . . . . . . . . . . . . . . . . Slashing 765 | . . . . . . . . . . . . . . . . 157 313 203 . 92 . . . . Piercing . | . . . . . . . . . . . . . . . . . . . . . . . . . Entropic 2019 | . . . . . . . . . . . . . . . . . . 1463 . 556 . . . . Highest Corruption 5 | . . . . . . . . . . . . . 1 1 5 5 . 2 . . 4 4 1 1 Average Corruption 2 | . . . . . . . . . . . . . 1 1 2 5 . 1 . . 3 4 1 1 Corruption Purged . | . . . . . . . . . . . . . . . . . . . . . . . . . Corruption Blocked 10 | . . . . . . . . . . . . . . . . . . . . . 6 4 . . Effects 19 | . . . . . . . . . . . . . . 1 5 1 . 1 . . 8 3 . . Message Errors 3 | . . . . . . . . . . . . . . . . . . . . . 2 1 . . Matter Fused 5 | . . . . . . . . . . . . . . 1 1 . . . . . 3 . . . Heat Flow Errors 2 | . . . . . . . . . . . . . . . 1 . . . . . 1 . . . Energy Discharges 1 | . . . . . . . . . . . . . . . . . . . . . . 1 . . Parts Rejected 1 | . . . . . . . . . . . . . . . 1 . . . . . . . . . Data Loss (minor) 5 | . . . . . . . . . . . . . . . 2 1 . . . . 1 1 . . Misfires 1 | . . . . . . . . . . . . . . . . . . . . . 1 . . . Weapon Failures 1 | . . . . . . . . . . . . . . . . . . 1 . . . . . . Overload Shots 1 | . . . . . . . . . . . . . 1 . . . . . . . . . . . Overflow Damage 596 | . . . 47 . 82 . . 3 90 . . . 130 . 4 16 122 51 . . 36 . 15 . Projectiles 177 | . . . . . . . . . . . . . 75 . . . 51 . . . 36 . 15 . Explosions 419 | . . . 47 . 82 . . 3 90 . . . 55 . 4 16 71 51 . . . . . . Melee . | . . . . . . . . . . . . . . . . . . . . . . . . . Knockbacks 20 | . . . . . . . . . . . . . 11 . 1 . . . . 1 . . 7 . Impact . | . . . . . . . . . . . . . . . . . . . . . . . . . Kinetic 18 | . . . . . . . . . . . . . 9 . 1 . . . . 1 . . 7 . Secondary 2 | . . . . . . . . . . . . . 2 . . . . . . . . . . . Self-Inflicted Damage 139 | . . . . 6 14 . . . . . . . 11 . . . . . . 88 . . . 20 Shots 4 | . . . . 1 2 . . . . . . . . . . . . . . 1 . . . . Rammed 3 | . . . . . 1 . . . . . . . 1 . . . . . . . . . . 1 Targets Rammed 3 | . . . . . 1 . . . . . . . 1 . . . . . . . . . . 1 Kicked . | . . . . . . . . . . . . . . . . . . . . . . . . . Crushed . | . . . . . . . . . . . . . . . . . . . . . . . . . Highest Temperature 330 | . 72 . 201 156 104 . . . 52 . . 26 69 20 330 . . 308 38 72 234 . 92 . Average Temperature 81 | . 27 . 53 57 36 . . . 24 . . 14 16 8 151 . . 132 20 18 98 . 24 . Received Heat Transfer 1694 | . 12 . 225 27 441 . 54 102 72 . . . 243 144 . . 31 90 . 12 27 18 169 27 Siege Activations . | . . . . . . . . . . . . . . . . . . . . . . . . . Robots Corrupted 5 | . . . 1 . 4 . . . . . . . . . . . . . . . . . . . Combat Hostiles 5 | . . . 1 . 4 . . . . . . . . . . . . . . . . . . . Parts Fried 18 | . . . 8 1 9 . . . . . . . . . . . . . . . . . . . Impact Corruptions . | . . . . . . . . . . . . . . . . . . . . . . . . . Robots Melted . | . . . . . . . . . . . . . . . . . . . . . . . . . Combat Hostiles . | . . . . . . . . . . . . . . . . . . . . . . . . . Parts Melted 1 | . . . . . . . . . . . . . . . . . . . . . . . 1 . Heat Transferred 3055 | . 111 74 300 50 592 . . . 150 . . . 925 . 111 . . 150 . . 111 . 481 . Parts Sabotaged . | . . . . . . . . . . . . . . . . . . . . . . . . . Parts Stolen . | . . . . . . . . . . . . . . . . . . . . . . . . . Parts Stripped . | . . . . . . . . . . . . . . . . . . . . . . . . . Power Chain Reactions 5 | . . . 4 1 . . . . . . . . . . . . . . . . . . . . Missiles Intercepted . | . . . . . . . . . . . . . . . . . . . . . . . . . Alert | -11 -10 -10 -9 -9 -8 -7 -7 -6 -6 -6 -6 -5 -5 -5 -5 -5 -4 -4 -3 -3 -2 -2 -1 -1 ------- Run | Scr Mat Min Mat Sto Mat Fac DSF Fac Low Low Dat Pro Fac Upp Upp War Pro Fac Res DSF Res Qua Acc Com Peak Influence 1000 | . 68 104 583 470 726 174 221 357 . . . . 286 . . . . 1000 525 622 472 328 678 646 Initial 525 | . . 26 . 245 198 169 121 115 . . . . . . . . . 222 525 393 349 265 196 433 Average 296 | . 21 48 218 362 467 171 181 191 . . . . 110 . . . . 677 525 524 416 288 424 524 Maximum Alert Level 3 | . . . 2 2 3 . 1 1 . . . . 1 . . . . 3 2 2 2 1 2 2 Low Security (%) 39 | 100 100 100 53 . 2 100 46 70 . . . . 82 . . . . . . . . . 8 . Level 1 29 | . . . 35 79 33 . 53 29 . . . . 17 . . . . 13 . 1 50 100 31 . Level 2 27 | . . . 11 20 60 . . . . . . . . . . . . 32 100 98 50 . 59 100 Level 3 3 | . . . . . 4 . . . . . . . . . . . . 54 . . . . . . Level 4 . | . . . . . . . . . . . . . . . . . . . . . . . . . Level 5 . | . . . . . . . . . . . . . . . . . . . . . . . . . High Security . | . . . . . . . . . . . . . . . . . . . . . . . . . Max Security . | . . . . . . . . . . . . . . . . . . . . . . . . . Sterilizations 1 | . . . . . . . . . . . . . . . . . . . . 1 . . . . Squads Dispatched 26 | . 2 . 1 . 4 . 1 1 . . . . 4 . . . . . . 1 2 2 7 1 Investigation 3 | . . . . . 1 . . 1 . . . . . . . . . . . . . . 1 . Extermination 1 | . . . . . . . . . . . . . . . . . . . . . . . 1 . Reinforcement 18 | . 2 . 1 . 2 . 1 . . . . . 3 . . . . . . 1 2 2 3 1 Assault 3 | . . . . . 1 . . . . . . . . . . . . . . . . . 2 . Garrison 1 | . . . . . . . . . . . . . 1 . . . . . . . . . . . Intercept . | . . . . . . . . . . . . . . . . . . . . . . . . . Searches Triggered . | . . . . . . . . . . . . . . . . . . . . . . . . . Data Miner Redirects 1 | . . . . . . . . . . . . . . . . . . . . . . . 1 . Construction Impeded 1 | . . . . . 1 . . . . . . . . . . . . . . . . . . . Haulers Reinforced 3 | . . . . . . . . . . . . . 1 . . . . . . . 1 . 1 . Active Scanning Responses . | . . . . . . . . . . . . . . . . . . . . . . . . . Cargo Convoy Interrupts . | . . . . . . . . . . . . . . . . . . . . . . . . . Stealth | -11 -10 -10 -9 -9 -8 -7 -7 -6 -6 -6 -6 -5 -5 -5 -5 -5 -4 -4 -3 -3 -2 -2 -1 -1 --------- Run | Scr Mat Min Mat Sto Mat Fac DSF Fac Low Low Dat Pro Fac Upp Upp War Pro Fac Res DSF Res Qua Acc Com Distress Signals 17 | . . . 3 . 3 . . . . . . . 1 . . 1 1 . . . 7 . 1 . Communications Jammed 84 | . . . . . . . . . . . . . . . . . . . . 12 26 19 26 1 Distress Signals 72 | . . . . . . . . . . . . . . . . . . . . . 26 19 26 1 Times Spotted 245 | . 3 5 35 3 37 . 6 7 7 . . . 26 7 5 21 5 10 . 7 8 8 34 11 Peak Tracking Total 11 | . 1 3 6 1 7 . 2 4 4 . . . 5 7 4 5 4 3 . 4 6 8 7 11 Tactical Retreats 19 | . . . 2 . . . 1 1 . . . . 1 4 . 2 . . . . 3 . 3 2 Traps | -11 -10 -10 -9 -9 -8 -7 -7 -6 -6 -6 -6 -5 -5 -5 -5 -5 -4 -4 -3 -3 -2 -2 -1 -1 ------- Run | Scr Mat Min Mat Sto Mat Fac DSF Fac Low Low Dat Pro Fac Upp Upp War Pro Fac Res DSF Res Qua Acc Com Traps Triggered 11 | . . . . 2 1 . . 1 . . . . 1 . . . . 4 . 1 1 . . . Indirectly . | . . . . . . . . . . . . . . . . . . . . . . . . . Trap Hack Attempts . | . . . . . . . . . . . . . . . . . . . . . . . . . Triggered . | . . . . . . . . . . . . . . . . . . . . . . . . . Disarmed . | . . . . . . . . . . . . . . . . . . . . . . . . . Reprogrammed 6 | . . . . 6 . . . . . . . . . . . . . . . . . . . . Reused 2 | . . . . 2 . . . . . . . . . . . . . . . . . . . . Traps Extracted . | . . . . . . . . . . . . . . . . . . . . . . . . . Installed . | . . . . . . . . . . . . . . . . . . . . . . . . . Triggered 20 | . . . . 2 . . . . . . . 3 . 2 . 13 . . . . . . . . Machines | -11 -10 -10 -9 -9 -8 -7 -7 -6 -6 -6 -6 -5 -5 -5 -5 -5 -4 -4 -3 -3 -2 -2 -1 -1 ---------- Run | Scr Mat Min Mat Sto Mat Fac DSF Fac Low Low Dat Pro Fac Upp Upp War Pro Fac Res DSF Res Qua Acc Com Machines Disabled 26 | . . . 3 3 1 . . 1 . . . 1 . . . . . 11 . 1 . 1 2 2 Max in Single Turn 6 | . . . 2 1 1 . . 1 . . . 1 . . . . . 6 . 1 . 1 1 1 Machines Sabotaged . | . . . . . . . . . . . . . . . . . . . . . . . . . Garrisons Compromised . | . . . . . . . . . . . . . . . . . . . . . . . . . Overloaded Fab Kills . | . . . . . . . . . . . . . . . . . . . . . . . . . Hacking | -11 -10 -10 -9 -9 -8 -7 -7 -6 -6 -6 -6 -5 -5 -5 -5 -5 -4 -4 -3 -3 -2 -2 -1 -1 --------- Run | Scr Mat Min Mat Sto Mat Fac DSF Fac Low Low Dat Pro Fac Upp Upp War Pro Fac Res DSF Res Qua Acc Com Machines Accessed 43 | . 2 . 4 6 4 1 . 2 1 . 4 . 3 . . 6 . 1 1 . 1 3 2 2 Terminals 30 | . 1 . 4 6 4 1 . 2 . . . . 3 . . . . 1 1 . . 3 2 2 Fabricators 1 | . . . . . . . . . . . . . . . . . . . . . 1 . . . Repair Stations 1 | . 1 . . . . . . . . . . . . . . . . . . . . . . . Recycling Units . | . . . . . . . . . . . . . . . . . . . . . . . . . Scanalyzers . | . . . . . . . . . . . . . . . . . . . . . . . . . Garrison Access . | . . . . . . . . . . . . . . . . . . . . . . . . . Total Hacks 123 | . 5 . 12 24 10 1 . 4 1 . 28 . 10 . . 12 . 2 1 . 1 5 3 4 Successful 80 | . 3 . 6 10 5 1 . 1 1 . 28 . 7 . . 12 . . 1 . 1 3 . 1 Failed 43 | . 2 . 6 14 5 . . 3 . . . . 3 . . . . 2 . . . 2 3 3 Catastrophic 11 | . . . 3 1 . . . 1 . . . . 1 . . . . 1 . . . 1 2 1 Database Lockouts . | . . . . . . . . . . . . . . . . . . . . . . . . . Manual 38 | . 2 . 9 4 9 . . 2 . . . 1 6 . . 1 . 2 . . 1 . . 1 Terminals 80 | . 4 . 12 24 10 1 . 4 . . . . 10 . . . . 2 1 . . 5 3 4 Fabricators 1 | . . . . . . . . . . . . . . . . . . . . . 1 . . . Repair Stations 1 | . 1 . . . . . . . . . . . . . . . . . . . . . . . Recycling Units . | . . . . . . . . . . . . . . . . . . . . . . . . . Scanalyzers . | . . . . . . . . . . . . . . . . . . . . . . . . . Garrison Access . | . . . . . . . . . . . . . . . . . . . . . . . . . Terminal Hacks 69 | . 1 . 5 8 3 1 . . 1 . 28 . 5 . . 12 . . 1 . . 3 . 1 Record 20 | . . . . . . . . . . . 11 . . . . 6 . . . . . 2 . 1 Part Schematic 10 | . . . . . . . . . . . 10 . . . . . . . . . . . . . Robot Schematic 4 | . . . . . . . . . . . 4 . . . . . . . . . . . . . Prototype ID Bank 9 | . 1 . . 1 . . . . . . 3 . . . . 4 . . . . . . . . Open Door 4 | . . . . 1 . . . . 1 . . . . . . 2 . . . . . . . . Open DSF 2 | . . . . . . 1 . . . . . . . . . . . . 1 . . . . . Branch Access Points 2 | . . . 1 . . . . . . . . . 1 . . . . . . . . . . . Alert Level 1 | . . . . . 1 . . . . . . . . . . . . . . . . . . . Unreport Threat 6 | . . . 2 . 2 . . . . . . . 2 . . . . . . . . . . . Locate Traps 2 | . . . . 1 . . . . . . . . 1 . . . . . . . . . . . Reprogram Traps 1 | . . . . 1 . . . . . . . . . . . . . . . . . . . . Patrol Status 1 | . . . . 1 . . . . . . . . . . . . . . . . . . . . Recall Reinforcements 2 | . . . 1 . . . . . . . . . . . . . . . . . . 1 . . Hauler Manifests 1 | . . . . 1 . . . . . . . . . . . . . . . . . . . . Registered Components 1 | . . . . 1 . . . . . . . . . . . . . . . . . . . . Zone Layout 3 | . . . 1 1 . . . . . . . . 1 . . . . . . . . . . . Fabricator Hacks . | . . . . . . . . . . . . . . . . . . . . . . . . . Repair Station Hacks . | . . . . . . . . . . . . . . . . . . . . . . . . . Recycling Unit Hacks . | . . . . . . . . . . . . . . . . . . . . . . . . . Scanalyzer . | . . . . . . . . . . . . . . . . . . . . . . . . . Garrison Access Hacks . | . . . . . . . . . . . . . . . . . . . . . . . . . Unauthorized Hacks 11 | . 2 . 1 2 2 . . 1 . . . . 2 . . . . . . . 1 . . . Terminals 9 | . 1 . 1 2 2 . . 1 . . . . 2 . . . . . . . . . . . Botnet 7 | . 1 . 1 2 1 . . 1 . . . . 1 . . . . . . . . . . . Disrupt 2 | . . . . . 1 . . . . . . . 1 . . . . . . . . . . . Fabricators 1 | . . . . . . . . . . . . . . . . . . . . . 1 . . . Fabnet 1 | . . . . . . . . . . . . . . . . . . . . . 1 . . . Repair Stations 1 | . 1 . . . . . . . . . . . . . . . . . . . . . . . Mechanics 1 | . 1 . . . . . . . . . . . . . . . . . . . . . . . Recycling Units . | . . . . . . . . . . . . . . . . . . . . . . . . . Scanalyzers . | . . . . . . . . . . . . . . . . . . . . . . . . . Garrison Access . | . . . . . . . . . . . . . . . . . . . . . . . . . Data Cores Recovered . | . . . . . . . . . . . . . . . . . . . . . . . . . Used . | . . . . . . . . . . . . . . . . . . . . . . . . . Hacking Detections 28 | . 2 . 4 6 4 1 . 2 . . . . 2 . . . . 1 . . 1 1 2 2 Full Trace Events 2 | . . . . . . . . 1 . . . . . . . . . . . . . . 1 . Feedback Events 1 | . . . . . . . . . . . . . . . . . . . . . . . 1 . Corruption 1 | . . . . . . . . . . . . . . . . . . . . . . . 1 . Feedback Blocked . | . . . . . . . . . . . . . . . . . . . . . . . . . Robot Schematics Acquired 4 | . . . . . . . . . . . 4 . . . . . . . . . . . . . Robots Built . | . . . . . . . . . . . . . . . . . . . . . . . . . Authchips . | . . . . . . . . . . . . . . . . . . . . . . . . . Time . | . . . . . . . . . . . . . . . . . . . . . . . . . Total Robot Build Rating . | . . . . . . . . . . . . . . . . . . . . . . . . . Part Schematics Acquired 10 | . . . . . . . . . . . 10 . . . . . . . . . . . . . Parts Built . | . . . . . . . . . . . . . . . . . . . . . . . . . Authchips . | . . . . . . . . . . . . . . . . . . . . . . . . . Time . | . . . . . . . . . . . . . . . . . . . . . . . . . Total Part Build Rating . | . . . . . . . . . . . . . . . . . . . . . . . . . Parts Repaired . | . . . . . . . . . . . . . . . . . . . . . . . . . Time . | . . . . . . . . . . . . . . . . . . . . . . . . . Parts Recycled . | . . . . . . . . . . . . . . . . . . . . . . . . . Recycled Matter . | . . . . . . . . . . . . . . . . . . . . . . . . . Retrieved Matter . | . . . . . . . . . . . . . . . . . . . . . . . . . Retrieved Components . | . . . . . . . . . . . . . . . . . . . . . . . . . Parts Scanalyzed . | . . . . . . . . . . . . . . . . . . . . . . . . . Part Schematics Acquired . | . . . . . . . . . . . . . . . . . . . . . . . . . Parts Damaged . | . . . . . . . . . . . . . . . . . . . . . . . . . Bothacking | -11 -10 -10 -9 -9 -8 -7 -7 -6 -6 -6 -6 -5 -5 -5 -5 -5 -4 -4 -3 -3 -2 -2 -1 -1 ------------ Run | Scr Mat Min Mat Sto Mat Fac DSF Fac Low Low Dat Pro Fac Upp Upp War Pro Fac Res DSF Res Qua Acc Com Used RIF Installer . | . . . . . . . . . . . . . . . . . . . . . . . . . Robots Hacked 1 | . . . . . . . . . . . . . . . . . . . . . . . 1 . Non-combat . | . . . . . . . . . . . . . . . . . . . . . . . . . Combat 1 | . . . . . . . . . . . . . . . . . . . . . . . 1 . Robot Hacks Applied . | . . . . . . . . . . . . . . . . . . . . . . . . . Relay Couplers Released . | . . . . . . . . . . . . . . . . . . . . . . . . . Fabnet Peak Effective % 3 | . . . . . . . . . . . . . . . . . . . . . . . 3 3 Autooverrided 1 | . . . . . . . . . . . . . . . . . . . . . . . 1 . Robots Rewired 3 | . . . . . . . . . . . . . . . . 3 . . . . . . . . Allies Hacked . | . . . . . . . . . . . . . . . . . . . . . . . . . Hacks Repelled . | . . . . . . . . . . . . . . . . . . . . . . . . . Allies | -11 -10 -10 -9 -9 -8 -7 -7 -6 -6 -6 -6 -5 -5 -5 -5 -5 -4 -4 -3 -3 -2 -2 -1 -1 -------- Run | Scr Mat Min Mat Sto Mat Fac DSF Fac Low Low Dat Pro Fac Upp Upp War Pro Fac Res DSF Res Qua Acc Com Total Allies 6 | . . 2 . . . . . . . . . . . . . 3 . . . . . . 1 . Largest Group 3 | . . 2 . . . . . . . . . . . . . 3 3 1 . . . . . . Highest-Rated Group 149 | . . 42 . . . . . . . . . . . . . 149 149 65 . . . . . . Highest-Rated Ally 65 | . . 31 . . . . . . . . . . . . . 65 65 65 . . . . . . Total Orders . | . . . . . . . . . . . . . . . . . . . . . . . . . Ally Attacks 37 | . . 11 . . . . . . . . . . . . . 12 14 . . . . . . . Total Damage 941 | . . 102 . . . . . . . . . . . . . 398 441 . . . . . . . Kills 10 | . . 3 . . . . . . . . . . . . . 5 2 . . . . . . . Allies Corrupted . | . . . . . . . . . . . . . . . . . . . . . . . . . Allies Melted 2 | . . . . . . . . . . . . . . . . 1 . . . . 1 . . . Intel | -11 -10 -10 -9 -9 -8 -7 -7 -6 -6 -6 -6 -5 -5 -5 -5 -5 -4 -4 -3 -3 -2 -2 -1 -1 ------- Run | Scr Mat Min Mat Sto Mat Fac DSF Fac Low Low Dat Pro Fac Upp Upp War Pro Fac Res DSF Res Qua Acc Com Robot Analysis Total . | . . . . . . . . . . . . . . . . . . . . . . . . . Derelict Logs Recovered 5 | . . 1 . . . . . . 1 1 . . . . 1 . 1 . . . . . . . Drone Launches . | . . . . . . . . . . . . . . . . . . . . . . . . . Drone Recoveries . | . . . . . . . . . . . . . . . . . . . . . . . . . Exploration | -11 -10 -10 -9 -9 -8 -7 -7 -6 -6 -6 -6 -5 -5 -5 -5 -5 -4 -4 -3 -3 -2 -2 -1 -1 ------------- Run | Scr Mat Min Mat Sto Mat Fac DSF Fac Low Low Dat Pro Fac Upp Upp War Pro Fac Res DSF Res Qua Acc Com Turns Passed 7080 | 77 268 415 700 370 546 4 280 233 269 242 41 93 588 197 300 639 238 331 11 168 298 117 502 153 Spaces Moved 8529 | 59 220 365 450 274 267 3 234 356 416 414 78 161 720 292 482 1040 335 645 10 174 425 213 611 285 Core 9 | 9 . . . . . . . . . . . . . . . . . . . . . . . . Treads . | . . . . . . . . . . . . . . . . . . . . . . . . . Legs 129 | 50 79 . . . . . . . . . . . . . . . . . . . . . . . Wheels 1601 | . 141 365 450 274 267 3 101 . . . . . . . . . . . . . . . . . Hover 6790 | . . . . . . . 133 356 416 414 78 161 720 292 482 1040 335 645 10 174 425 213 611 285 Flight . | . . . . . . . . . . . . . . . . . . . . . . . . . Fastest Speed 30 | 50 80 90 90 105 98 98 52 52 52 52 52 52 43 43 48 45 45 30 30 30 46 46 41 41 Average Speed 58 | 110 98 90 103 105 98 98 74 52 52 52 52 52 48 46 51 48 45 33 30 42 58 46 42 41 Slowest Speed 120 | 120 120 90 105 105 102 100 115 52 52 52 52 52 105 52 52 52 45 89 30 100 89 46 43 41 Overloaded Moves . | . . . . . . . . . . . . . . . . . . . . . . . . . Propulsion Burnouts . | . . . . . . . . . . . . . . . . . . . . . . . . . Robots Hopped . | . . . . . . . . . . . . . . . . . . . . . . . . . Cave-ins Triggered 2 | . . . . . . . . . . . . . . . 2 . . . . . . . . . Exploration Rate (%) 42 | 5 32 72 46 41 33 1 94 8 58 49 69 32 17 55 74 94 53 19 . 95 14 28 24 12 Regions Visited 24 Branch Regions 12 Pre-discovered Areas 5 | . . . . 1 . . . . . . 1 . . . 1 2 . . . . . . . . Known Exits Taken 6 | . . . 1 . . 1 . . . . . . 1 . . . 1 . 1 . . . 1 . Unknown Exits Taken 16 | 1 1 1 . 1 1 . . 1 1 1 1 1 . 1 1 1 . 1 . . 1 1 . . Scrap Searched 10 | . . 1 . . . . . . 2 1 . . . 1 4 . 1 . . . . . . . Spaces Dug 20 | . . . . . . . . . . . . . 3 . 10 . . . . . . 1 4 2 Terrain Destroyed 709 | . . . 46 4 90 . . 28 63 . . . 34 4 26 55 132 137 . 55 2 1 15 17 Melee 2 | . . . . . . . . . . . . . 2 . . . . . . . . . . . Projectile 118 | . . . . . . . . . . . . . 19 4 13 . 1 46 . 14 2 1 14 4 AOE 588 | . . . 46 4 90 . . 28 63 . . . 13 . 13 55 131 91 . 41 . . . 13 Terrain Rammed . | . . . . . . . . . . . . . . . . . . . . . . . . . Walls Destroyed . | . . . . . . . . . . . . . . . . . . . . . . . . . Machines Disabled . | . . . . . . . . . . . . . . . . . . . . . . . . . Actions | -11 -10 -10 -9 -9 -8 -7 -7 -6 -6 -6 -6 -5 -5 -5 -5 -5 -4 -4 -3 -3 -2 -2 -1 -1 --------- Run | Scr Mat Min Mat Sto Mat Fac DSF Fac Low Low Dat Pro Fac Upp Upp War Pro Fac Res DSF Res Qua Acc Com Total 9881 | 68 260 441 583 329 407 4 304 381 450 439 77 167 858 329 508 1171 412 749 17 226 459 223 712 307 Wait 415 | 1 13 72 27 2 32 . . . 14 25 . . 47 18 1 81 58 5 7 2 3 . 7 . Move 8503 | 58 219 364 449 273 266 2 233 355 415 413 77 160 719 291 479 1039 334 644 9 173 424 212 610 285 Hop . | . . . . . . . . . . . . . . . . . . . . . . . . . Pick Up 98 | 3 9 . 16 8 8 . 11 6 1 . . 1 9 1 2 5 . 5 . 6 4 . 2 1 Fast Attach 95 | 6 4 . 8 1 7 . 4 1 . 1 . 1 6 . 1 8 4 11 . 10 7 2 8 5 Attach 61 | . . . 5 . 10 2 2 3 . . . . 8 3 5 2 2 7 1 4 2 . 3 2 Detach 27 | . . . 1 1 1 . 1 . . . . . 2 1 1 4 2 5 . 1 3 . 2 2 Swap 69 | . 2 . 11 10 9 . 5 1 5 . . . 4 1 1 1 2 5 . . 3 2 6 1 Drop 108 | . 7 . 10 4 3 . 24 3 2 . . 3 9 . . 2 2 14 . 8 7 1 6 3 Fire 439 | . 6 5 56 14 70 . 23 12 13 . . 2 51 7 16 3 8 45 . 21 6 6 68 7 Melee 9 | . . . . . . . . . . . . . 2 7 . . . . . . . . . . Ram 3 | . . . . . 1 . . . . . . . 1 . . . . . . . . . . 1 Kick . | . . . . . . . . . . . . . . . . . . . . . . . . . Crush . | . . . . . . . . . . . . . . . . . . . . . . . . . Escape Stasis 26 | . . . . 16 . . . . . . . . . . 2 . . 8 . . . . . . Rewire 28 | . . . . . . . 1 . . . . . . . . 26 . . . 1 . . . . Trap . | . . . . . . . . . . . . . . . . . . . . . . . . . Miscellaneous . | . . . . . . . . . . . . . . . . . . . . . . . . . Route ------- -11/Scrapyard -10/Materials -10/Mines (discovered 2 exits: *Mat x2) -9/Materials (discovered 5 exits: *Mat / Min x2 / *Sto x2) -9/Storage -8/Materials -7/Factory -7/DSF -6/Factory -6/Lower Caves -6/Lower Caves (discovered 2 exits: *Fac / *Dat) -6/Data Miner -5/Proximity Caves -5/Factory (discovered 3 exits: Fac / *Upp x2) -5/Upper Caves -5/Upper Caves (discovered 2 exits: *Fac / *War) -5/Warlord -4/Proximity Caves -4/Factory -3/Research -3/DSF -2/Research -2/Quarantine -1/Access -1/Command History --------- Turn | Location | Event 4 | -11/Scrapyard | Discovered new exit (range 14) 78 | -11/Scrapyard | Entered Materials 239 | -10/Materials | Discovered new exit (range 12) 301 | -10/Materials | Build established: Mutant 346 | -10/Materials | Entered Mines 374 | -10/Mines | Learned Materials garrison access intel 528 | -10/Mines | Discovered new exit (range 7) 597 | -10/Mines | Discovered new exit (range 5) 652 | -10/Mines | Assembled infested the area 657 | -10/Mines | Assisted by a Guerilla fighting off Assembled 761 | -10/Mines | Entered Materials 761 | -9/Materials | Evolved 2 slots: Propulsion x1, Utility x1 1148 | -9/Materials | Identified exit to Mines 1148 | -9/Materials | Identified exit to Storage 1414 | -9/Materials | Discovered new exit (range 16) 1461 | -9/Materials | Entered Storage 1498 | -9/Storage | Learned location of Armory (-4) 1823 | -9/Storage | Discovered new exit (range 5) 1831 | -9/Storage | Entered Materials 1831 | -8/Materials | Evolved 2 slots: Propulsion x1, Utility x1 1832 | -8/Materials | Loaded intel: 1 garrison access location 2014 | -8/Materials | Lost 3 parts (1n1u1w) 2231 | -8/Materials | First assault squad dispatched 2340 | -8/Materials | Discovered new exit (range 11) 2377 | -8/Materials | Entered Factory 2377 | -7/Factory | Evolved 2 slots: Propulsion x2 2379 | -7/Factory | Identified exit to DSF 2381 | -7/Factory | Entered DSF 2422 | -7/DSF | Additional patrols routed to DSF 2620 | -7/DSF | Discovered new exit (range 16) 2661 | -7/DSF | Entered Factory 2661 | -6/Factory | Evolved 2 slots: Power x1, Utility x1 2725 | -6/Factory | Discovered new exit (range 8) 2894 | -6/Factory | Entered Lower Caves 2965 | -6/Lower Caves | Found Prototype Device 2978 | -6/Lower Caves | Encountered a Warlord checkpoint 2985 | -6/Lower Caves | Learned location of 1 exit from Factory 3042 | -6/Lower Caves | Spotted B-75 Beast 3157 | -6/Lower Caves | Discovered new exit (range 11) 3163 | -6/Lower Caves | Entered another Lower Caves area 3231 | -6/Lower Caves | Discovered new exit (range 3) 3400 | -6/Lower Caves | Discovered new exit (range 9) 3405 | -6/Lower Caves | Entered Data Miner 3405 | -6/Data Miner | Discovered new exit (range 6) 3415 | -6/Data Miner | Met Data Miner 3425 | -6/Data Miner | Learned location of Section 7 (-2) 3425 | -6/Data Miner | Acquired the access code to Warlord's prototype stash 3435 | -6/Data Miner | Received God Mode back door access code from Data Miner 3446 | -6/Data Miner | Entered Proximity Caves 3458 | -5/Proximity Caves | Acquired the password to a Derelict Tinkerer's latest research 3465 | -5/Proximity Caves | Found Prototype Special Weapon 3465 | -5/Proximity Caves | Identified Molecular Deconstructor 3536 | -5/Proximity Caves | Discovered new exit (range 7) 3539 | -5/Proximity Caves | Entered Factory 3539 | -5/Factory | Evolved 2 slots: Utility x2 3540 | -5/Factory | Identified exit to Factory 3540 | -5/Factory | Identified Heart of Steel 3598 | -5/Factory | Identified exit to Upper Caves 4113 | -5/Factory | Garrison activated, responded to threat 4127 | -5/Factory | Entered Upper Caves 4209 | -5/Upper Caves | Attracted the attention of an 0b10 base 4224 | -5/Upper Caves | Attracted the attention of an 0b10 checkpoint 4299 | -5/Upper Caves | Lost 4 parts (2n2u) 4320 | -5/Upper Caves | Discovered new exit (range 9) 4324 | -5/Upper Caves | Entered another Upper Caves area 4335 | -5/Upper Caves | Discovered exit to Factory (range 9) 4379 | -5/Upper Caves | Crushed by falling debris 4512 | -5/Upper Caves | Crushed by falling debris 4579 | -5/Upper Caves | Lost 6 parts (3n1u2w) 4621 | -5/Upper Caves | Discovered new exit (range 6) 4624 | -5/Upper Caves | Entered Warlord 4644 | -5/Warlord | System corruption cleaned by Quarantine Array 4744 | -5/Warlord | Learned location of Testing (-3) 4744 | -5/Warlord | Learned Quarantine security intel 4744 | -5/Warlord | Learned Research recycling unit intel 4831 | -5/Warlord | Visited the Vortex Lab 4835 | -5/Warlord | Found Prototype Energy Gun 4835 | -5/Warlord | Identified Vortex Rail 4837 | -5/Warlord | Found Vortex Rail 4838 | -5/Warlord | Warlord's base attacked by MAIN.C 4898 | -5/Warlord | Met Warlord 4904 | -5/Warlord | Opened Warlord's prototype stash 4907 | -5/Warlord | Found Prototype Processor 4907 | -5/Warlord | Identified Exp. Targeting Computer 4910 | -5/Warlord | Found Prototype Device 4910 | -5/Warlord | Identified Exp. Focal Shield 4922 | -5/Warlord | Found Prototype Reactor 5006 | -5/Warlord | Found Prototype Special Weapon 5006 | -5/Warlord | Identified RU-N14's Throwing Claymores v3 5010 | -5/Warlord | Found RU-N14's Throwing Claymores v3 5011 | -5/Warlord | Found RU-N14's Throwing Claymores v3 5050 | -5/Warlord | Opened side exit 5163 | -5/Warlord | Warlord forces counterattacked 5191 | -5/Warlord | Spotted Striker 5227 | -5/Warlord | Discovered new exit (range 9) 5263 | -5/Warlord | Entered Proximity Caves 5263 | -4/Proximity Caves | Accompanied by 3 allies 5294 | -4/Proximity Caves | Found Imp. Powered Armor 5392 | -4/Proximity Caves | Destroyed 7 combat bots 5501 | -4/Proximity Caves | Entered Factory 5501 | -4/Factory | Accompanied by 1 ally 5501 | -4/Factory | Evolved 2 slots: Propulsion x2 5571 | -4/Factory | Identified Vortex Chain Reactor 5596 | -4/Factory | Found Quantum Capacitor 5645 | -4/Factory | P-70 Sage assimilated allied Archangel 6a 5824 | -4/Factory | Discovered new exit (range 15) 5832 | -4/Factory | Entered Research 5832 | -3/Research | Evolved 2 slots: Utility x2 5833 | -3/Research | Loaded intel: 4 recycling unit locations 5843 | -3/Research | Identified exit to DSF 5843 | -3/Research | Entered DSF 5860 | -3/DSF | Additional patrols routed to DSF 5902 | -3/DSF | Lost 4 parts (3n1u) 5967 | -3/DSF | Discovered new exit (range 15) 5974 | -3/DSF | Sterilization system engaged 5994 | -3/DSF | Ambient heat levels rising (+10) 6009 | -3/DSF | Ambient heat levels rising (+10) 6011 | -3/DSF | Entered Research 6011 | -2/Research | Warlord forces began assault on 0b10 6011 | -2/Research | Evolved 2 slots: Utility x1, Weapon x1 6121 | -2/Research | Research machine network offline 6201 | -2/Research | Spotted B-90 Cyclops 6227 | -2/Research | Borebot progress halted 6250 | -2/Research | Discovered new exit (range 16) 6309 | -2/Research | Entered Quarantine 6320 | -2/Quarantine | Found Alien Artifact 6320 | -2/Quarantine | Identified Subatomic Replicator 6407 | -2/Quarantine | Discovered new exit (range 16) 6426 | -2/Quarantine | Entered Access 6426 | -1/Access | Evolved 2 slots: Propulsion x1, Utility x1 6477 | -1/Access | Found Prototype Device 6477 | -1/Access | Identified Exp. Thermal Defense Suite 6722 | -1/Access | First assault squad dispatched 6790 | -1/Access | Spotted B-99 Colossus 6860 | -1/Access | Incoming investigation squad redirected 6900 | -1/Access | Discovered new exit (range 17) 6924 | -1/Access | Spotted B-99 Colossus 6925 | -1/Access | Spotted B-99 Colossus 6927 | -1/Access | Identified exit to Command 6928 | -1/Access | Entered Command 7018 | -1/Command | Lost 3 parts (1u2w) 7065 | -1/Command | Found Prototype Launcher 7065 | -1/Command | Identified Point Singularity Launcher 7081 | -1/Command | Self-destructed Last Messages --------------- 06997_ W-44 Eye distress signal jammed. 06999_ Slug penetrates Wall. 07010_ Connecting with Cave Seal Controls... 07010_ HV Slug penetrates Cave Seal Controls. 07010_ HV Slug penetrates Machine. 07010_ Cave Seal Controls disabled. 07013_ HV Slug penetrates Machine. 07013_ Machine disabled. 07033_ Acquired Imp. Cloaking Device. 07041_ Penetrated by Slug. 07042_ Adv. Cryofiber Web destroyed. 07043_ Penetrated by Slug. 07048_ Acquired Hvy. Linear Accelerator. 07065_ Dropped Hyp. Railgun. 07065_ Acquired Prototype Launcher. 07065_ Identified Point Singularity Launcher. 07067_ Acquired Hyp. Railgun. 07077_ K-01 Serf destroyed. 07077_ Vortex Chain Reactor destroyed. 07077_ Penetrated by Slug. Map ----- +----------------------------------------------------+ | | | | | | | | | | | | | | | | | | | | | | | ############################?????????????????????? | | [ # #?????????????????????? | | # ! #?????????????????????? | | # #?????????????????????? | | ?? ??????????????????????? | | ? ?????? ????########????????????? | | ??? ?????????? ??????# !#????????????? | | #####+##############+######### #????????????? | | ## + # + #????????????? | | + ### + ######### ###########??? | | ## #?# # #???????# # #??? | | ## #?# ! #???????# # #??? | | +### ###### ############+#+# "" #??? | | h # """" [ #??? | | hh @ + """" #??? | | #########+## +##### ###+####### "" #??? | | ???????????????????????# # ????# #??? | | ???????????????????????# # ??# * #??? | | ??????????????????????? # ############??? | | ??????????????????????## # """"#?????????????? | | ???????????????????????# # """"#?????????????? | | ???????????????????????# #= """"#?????????????? | | ???????????????????????#^ # """"#?????????????? | | ??????????????????????? R # #?????????????? | | ???????????????????????# # ???????????????? | | ???????????????????????# ########???????????????? | | ???????????????????????# ???????????????????????? | | ???????????????????????# ???????????????????????? | | ???????????????????????# ???????????????????????? | | ???????????????????????# ???????????????????????? | | ???????????????????????? ???????????????????????? | | ???????????????????????? ???????????????????????? | | ???????????????????????? ???????????????????????? | | ???????????????????????? ???????????????????????? | | ?????????????????????????????????????????????????? | | ?????????????????????????????????????????????????? | | ?????????????????????????????????????????????????? | | ?????????????????????????????????????????????????? | | ###??????????????????????????????????????????????? | +----------------------------------------------------+ Best States ------------- Heat Dissipation 90 Coolant Potential 80 Energy Generation 70 Energy Capacity 700 Matter Stores 300 Matter Capacity 300 Sight Range 20 Robot Scan Range 16 Terrain Scan Density 10 Jamming Range 16 Cloak Strength 3 Power Amplification 30 Base Temperature (-) 200 Armor Coverage 450 Resistance: KI 30 Core Shielding 20 Phase Shifting 15 Evasion (%) 71 Targeting Accuracy 12 Target Analysis 8 Matter Filtering 50 Offensive Hacking 25 Item Schematics ----------------- Combat Drone Bay | -6/Data Miner | Free Lgt. Regenerative Plating | -6/Data Miner | Free Enh. Flexi-carbon Leg | -6/Data Miner | Free Imp. Energy Well | -6/Data Miner | Free Imp. Linear Gravjet | -6/Data Miner | Free HERF Cannon | -6/Data Miner | Free Hvy. Gatling Laser | -6/Data Miner | Free Adv. Hardlight Generator | -6/Data Miner | Free Antimatter Reactor | -6/Data Miner | Free Particle Reactor | -6/Data Miner | Free Robot Schematics ------------------ A-15 Conveyor | -6/Data Miner | Free B-60 Warrior | -6/Data Miner | Free M-22 Extractor | -6/Data Miner | Free B-48 Gladiator | -6/Data Miner | Free Fabricated ------------ Nothing Alien Tech Used ----------------- Subatomic Replicator Achievements -------------- Deconstruction No Signal Challenges ------------ None Game ------ Seed AutogunChipDetonator Manual? 0 Play Time 02:24:46 Cumulative 96.4 hours Start 2022.03.29 @ 07:39:44 End 2022.03.29 @ 10:28:00 Sessions 1 Manual Loads 0 Difficulty Rogue Special Mode None Game No. 99 Rogue 99 Adventurer 0 Explorer 0 Win Type - Total 0 Types 0/0/0/0/0/0/0/0/0 Lore% 46 Gallery% 47 Achievement% 37 Wizard Run 0 Options --------- ASCII 0 Keyboard 0 Movement Numpad Keybinds 0 Fullscreen 2 Font 18/CogNarrow Map View 76x50 Tactical HUD 1 Map Filters NONE Filters NONE Steam 1 RUN: c24a040a-a6d8-463a-9a35-72a2f3a63172